fUSD/lending_fUSD_20250906
["ID","MTS","AMOUNT","RATE_DAILY","PERIOD"]
[383914456,1757171564310,-400.0,0.00037808,8]
[383914457,1757171564321,-468.0,0.00037808,8]
[383914458,1757171564331,-1182.16,0.00037808,8]
[383914459,1757171564340,-271.541194,0.00037808,30]
[383914460,1757171564350,-400.0,0.00037808,8]
[383914461,1757171564360,-271.541194,0.00037808,30]
[383914462,1757171564371,-271.541194,0.00037808,30]
[383914463,1757171564380,-271.541194,0.00037808,30]
[383914464,1757171564390,-616.402038,0.00037808,30]
[383914465,1757171564400,-271.541194,0.00037808,30]
[383914466,1757171564411,-538.36,0.00037808,8]
[383914467,1757171564421,-616.402038,0.00037808,30]
[383914468,1757171564430,-53.35978831,0.00037808,30]
[383914469,1757171564442,-218.18140569,0.00037808,30]
[383914470,1757171564453,-400.0,0.00037808,8]
[383914471,1757171564462,-616.402038,0.00037808,30]
[383914472,1757171564472,-271.541194,0.00037808,30]
[383914473,1757171564482,-400.0,0.00037808,8]
[383914474,1757171564492,-616.402038,0.00037808,30]
[383914475,1757171564501,-271.541194,0.00037808,30]
[383914476,1757171564511,-271.541194,0.00037808,30]
[383914477,1757171564521,-616.402038,0.00037808,30]
[383914478,1757171564531,-271.541194,0.00037808,30]
[383914479,1757171564540,-616.402038,0.00037808,30]
[383914480,1757171564550,-516.63,0.00037808,8]
[383914481,1757171564560,-615.32,0.00037808,8]
[383914482,1757171564569,-271.541194,0.00037808,30]
[383914483,1757171564579,-616.402038,0.00037808,30]
[383914484,1757171564588,-271.541194,0.00037808,30]
[383914485,1757171564601,-616.402038,0.00037808,30]
[383914486,1757171564611,-616.402038,0.00037808,30]
[383914487,1757171564620,-271.541194,0.00037808,30]
[383914488,1757171564630,-400.0,0.00037808,8]
[383914489,1757171564639,-616.402038,0.00037808,30]
[383914490,1757171564650,-271.541194,0.00037808,30]
[383914491,1757171564660,-400.0,0.00037808,8]
[383914492,1757171564671,-616.402038,0.00037808,30]
[383914493,1757171564680,-616.402038,0.00037808,30]
[383914494,1757171564690,-271.541194,0.00037808,30]
[383914495,1757171564700,-271.541185,0.00037808,30]
[383914496,1757171564709,-616.402038,0.00037808,30]
[383914497,1757171564719,-412.98,0.00037808,8]
[383914498,1757171564729,-616.402038,0.00037808,30]
[383914499,1757171564738,-616.402038,0.00037808,30]
[383914500,1757171564748,-616.402041,0.00037808,30]
[383914501,1757171564757,-400.0,0.00037808,8]
[383914502,1757171564768,-400.0,0.00037808,8]
[383914503,1757171564778,-2132.96,0.00037808,8]
[383914504,1757171564787,-151.0,0.00037808,30]
[383914505,1757171564797,-151.0,0.00037808,30]
[383914506,1757171564807,-400.0,0.00037808,8]
[383914507,1757171564818,-2499.57,0.00037808,8]
[383914508,1757171564829,-151.0,0.00037808,30]
[383914509,1757171564843,-151.0,0.00037808,30]
[383914510,1757171564854,-400.0,0.00037808,8]
[383914511,1757171564866,-400.0,0.00037808,8]
[383914512,1757171564876,-408.11833514,0.00037808,8]
[383914513,1757171564886,-400.0,0.00037808,8]
[383914514,1757171564896,-482.21,0.00037808,8]
[383914515,1757171564906,-400.0,0.00037808,8]
[383914516,1757171564916,-424.36,0.00037808,8]
[383914517,1757171564926,-439.47,0.00037808,8]
[383914518,1757171564935,-400.0,0.00037808,8]
[383914519,1757171564945,-2235.5,0.00037808,8]
[383914520,1757171564956,-489.75,0.00037808,8]
[383914521,1757171564966,-1000.0,0.00037808,8]
[383914522,1757171564976,-400.0,0.00037808,8]
[383914523,1757171564985,-1925.38,0.00037808,8]
[383914524,1757171564995,-2649.97,0.00037808,8]
[383914525,1757171565006,-457.6,0.00037808,8]
[383914526,1757171565016,-254.533976,0.00037808,30]
[383914527,1757171565027,-501.4,0.00037808,8]
[383914528,1757171565038,-254.533976,0.00037808,30]
[383914529,1757171565048,-400.0,0.00037808,8]
[383914530,1757171565058,-254.533976,0.00037808,30]
[383914531,1757171565068,-2294.59,0.00037808,8]
[383914532,1757171565078,-254.533976,0.00037808,30]
[383914533,1757171565088,-400.0,0.00037808,8]
[383914534,1757171565098,-254.533976,0.00037808,30]
[383914535,1757171565108,-400.0,0.00037808,8]
[383914536,1757171565118,-400.0,0.00037808,8]
[383914537,1757171565128,-254.533976,0.00037808,30]
[383914538,1757171565138,-254.533976,0.00037808,30]
[383914539,1757171565148,-644.147916,0.00037808,30]
[383914540,1757171565159,-254.533976,0.00037808,30]
[383914541,1757171565169,-644.147916,0.00037808,30]
[383914542,1757171565179,-438.01,0.00037808,8]
[383914543,1757171565189,-644.147916,0.00037808,30]
[383914544,1757171565198,-644.147916,0.00037808,30]
[383914545,1757171565208,-254.533976,0.00037808,30]
[383914546,1757171565218,-254.533976,0.00037808,30]
[383914547,1757171565228,-644.147916,0.00037808,30]
[383914548,1757171565238,-254.533976,0.00037808,30]
[383914549,1757171565248,-644.147916,0.00037808,30]
[383914550,1757171565258,-254.533976,0.00037808,30]
[383914551,1757171565268,-644.147916,0.00037808,30]
[383914552,1757171565278,-644.147916,0.00037808,30]
[383914553,1757171565290,-254.533976,0.00037808,30]
[383914554,1757171565300,-254.533976,0.00037808,30]
[383914555,1757171565310,-644.147916,0.00037808,30]
[383914556,1757171565320,-254.533976,0.00037808,30]
[383914557,1757171565330,-254.533969,0.00037808,30]
[383914558,1757171565339,-644.147916,0.00037808,30]
[383914559,1757171565349,-644.147916,0.00037808,30]
[383914560,1757171565359,-400.0,0.00037808,8]
[383914561,1757171565369,-644.147916,0.00037808,30]
[383914562,1757171565379,-400.0,0.00037808,8]
[383914563,1757171565389,-400.0,0.00037808,8]
[383914564,1757171565398,-644.147916,0.00037808,30]
[383914565,1757171565408,-400.0,0.00037808,8]
[383914566,1757171565418,-644.147916,0.00037808,30]
[383914567,1757171565428,-644.147916,0.00037808,30]
[383914568,1757171565437,-400.0,0.00037808,8]
[383914569,1757171565448,-644.147922,0.00037808,30]
[383914570,1757171565459,-400.0,0.00037808,8]
[383914571,1757171565471,-400.0,0.00037808,8]
[383914572,1757171565480,-199.750129,0.00037808,30]
[383914573,1757171565490,-1226.94,0.00037808,8]
[383914574,1757171565499,-400.0,0.00037808,8]
[383914575,1757171565509,-151.0,0.00037808,30]
[383914576,1757171565518,-199.750129,0.00037808,30]
[383914577,1757171565527,-165.286435,0.00037808,30]
[383914578,1757171565538,-199.750129,0.00037808,30]
[383914579,1757171565547,-151.0,0.00037808,30]
[383914580,1757171565558,-199.750129,0.00037808,30]
[383914581,1757171565568,-151.0,0.00037808,30]
[383914582,1757171565577,-151.0,0.00037808,30]
[383914583,1757171565587,-199.750129,0.00037808,30]
[383914584,1757171565596,-151.0,0.00037808,30]
[383914585,1757171565606,-199.750129,0.00037808,30]
[383914586,1757171565619,-199.750129,0.00037808,30]
[383914587,1757171565629,-199.750129,0.00037808,30]
[383914588,1757171565640,-199.750129,0.00037808,30]
[383914589,1757171565650,-500.37,0.00037808,8]
[383914590,1757171565661,-199.750129,0.00037808,30]
[383914591,1757171565671,-199.750129,0.00037808,30]
[383914592,1757171565681,-199.750129,0.00037808,30]
[383914593,1757171565693,-199.750129,0.00037808,30]
[383914594,1757171565704,-400.0,0.00037808,8]
[383914595,1757171565714,-199.750129,0.00037808,30]
[383914596,1757171565725,-197.969138,0.00037808,30]
[383914597,1757171565735,-400.0,0.00037808,8]
[383914598,1757171565745,-151.0,0.00037808,30]
[383914599,1757171565755,-199.750129,0.00037808,30]
[383914600,1757171565764,-197.969138,0.00037808,30]
[383914601,1757171565775,-151.0,0.00037808,30]
[383914602,1757171565785,-199.750137,0.00037808,30]
[383914603,1757171565795,-197.969138,0.00037808,30]
[383914604,1757171565805,-151.0,0.00037808,30]
[383914605,1757171565815,-197.969138,0.00037808,30]
[383914606,1757171565825,-151.0,0.00037808,30]
[383914607,1757171565835,-576.06,0.00037808,8]
[383914608,1757171565846,-197.969138,0.00037808,30]
[383914609,1757171565857,-151.0,0.00037808,30]
[383914610,1757171565867,-197.969138,0.00037808,30]
[383914611,1757171565877,-151.0,0.00037808,30]
[383914612,1757171565886,-197.969138,0.00037808,30]
[383914613,1757171565896,-151.0,0.00037808,30]
[383914614,1757171565905,-197.969138,0.00037808,30]
[383914615,1757171565915,-240.981312,0.00037808,15]
[383914616,1757171565925,-400.0,0.00037808,8]
[383914617,1757171565935,-400.0,0.00037808,8]
[383914618,1757171565944,-197.969138,0.00037808,30]
[383914619,1757171565954,-240.981312,0.00037808,15]
[383914620,1757171565965,-400.0,0.00037808,8]
[383914621,1757171565975,-2406.6,0.00037808,8]
[383914622,1757171565984,-151.0,0.00037808,30]
[383914623,1757171565994,-197.969138,0.00037808,30]
[383914624,1757171566004,-240.981312,0.00037808,15]
[383914625,1757171566014,-400.0,0.00037808,8]
[383914626,1757171566023,-151.0,0.00037808,30]
[383914627,1757171566034,-197.969138,0.00037808,30]
[383914628,1757171566043,-240.981312,0.00037808,15]
[383914629,1757171566053,-197.969138,0.00037808,30]
[383914630,1757171566063,-151.0,0.00037808,30]
[383914631,1757171566072,-151.0,0.00037808,30]
[383914632,1757171566082,-240.981312,0.00037808,15]
[383914633,1757171566092,-151.0,0.00037808,30]
[383914634,1757171566102,-197.969138,0.00037808,30]
[383914635,1757171566111,-240.981312,0.00037808,15]
[383914636,1757171566121,-197.969138,0.00037808,30]
[383914637,1757171566131,-240.981312,0.00037808,15]
[383914638,1757171566142,-151.0,0.00037808,30]
[383914639,1757171566153,-197.969138,0.00037808,30]
[383914640,1757171566162,-151.0,0.00037808,30]
[383914641,1757171566172,-240.981312,0.00037808,15]
[383914642,1757171566181,-465.02,0.00037808,8]
[383914643,1757171566191,-151.0,0.00037808,30]
[383914644,1757171566201,-197.969145,0.00037808,30]
[383914645,1757171566210,-151.0,0.00037808,30]
[383914646,1757171566220,-151.0,0.00037808,30]
[383914647,1757171566231,-151.0,0.00037808,30]
[383914648,1757171566240,-400.0,0.00037808,8]
[383914649,1757171566250,-240.981312,0.00037808,15]
[383914650,1757171566260,-151.0,0.00037808,30]
[383914651,1757171566271,-151.0,0.00037808,30]
[383914652,1757171566280,-240.981312,0.00037808,15]
[383914653,1757171566290,-151.0,0.00037808,30]
[383914654,1757171566299,-242.58155359,0.00037808,8]
[383914655,1757171566324,-157.41844641,0.00037808,8]
[383914656,1757171566335,-240.981312,0.00037808,15]
[383914657,1757171566345,-164.404291,0.00037808,30]
[383914658,1757171566356,-400.0,0.00037808,8]
[383914659,1757171566367,-151.0,0.00037808,30]
[383914660,1757171566376,-400.0,0.00037808,8]
[383914661,1757171566386,-240.981312,0.00037808,15]
[383914662,1757171566395,-209.066029,0.00037808,30]
[383914663,1757171566406,-151.0,0.00037808,30]
[383914664,1757171566417,-151.0,0.00037808,30]
[383914665,1757171566427,-151.0,0.00037808,30]
[383914666,1757171566436,-240.981312,0.00037808,15]
[383914667,1757171566447,-151.0,0.00037808,30]
[383914668,1757171566457,-151.0,0.00037808,30]
[383914669,1757171566467,-240.981312,0.00037808,15]
[383914670,1757171566477,-151.0,0.00037808,30]
[383914671,1757171566487,-541.63,0.00037808,8]
[383914672,1757171566497,-240.981312,0.00037808,15]
[383914673,1757171566507,-151.0,0.00037808,30]
[383914674,1757171566516,-151.0,0.00037808,30]
[383914675,1757171566525,-240.981318,0.00037808,15]
[383914676,1757171566535,-151.0,0.00037808,30]
[383914677,1757171566546,-151.0,0.00037808,30]
[383914678,1757171566556,-206.335663,0.00037808,30]
[383914679,1757171566566,-4561.62,0.00037808,8]
[383914680,1757171566575,-157.702674,0.00037808,30]
[383914681,1757171566585,-151.0,0.00037808,30]
[383914682,1757171566596,-151.0,0.00037808,30]
[383914683,1757171566608,-151.0,0.00037808,30]
[383914684,1757171566617,-151.0,0.00037808,30]
[383914685,1757171566628,-151.0,0.00037808,30]
[383914686,1757171566642,-151.0,0.00037808,30]
[383914687,1757171566652,-151.0,0.00037808,30]
[383914688,1757171566663,-151.0,0.00037808,30]
[383914689,1757171566675,-151.0,0.00037808,30]
[383914690,1757171566684,-627.71,0.00037808,8]
[383914691,1757171566693,-151.0,0.00037808,30]
[383914692,1757171566705,-400.0,0.00037808,8]
[383914693,1757171566715,-151.0,0.00037808,30]
[383914694,1757171566725,-212.205431,0.00037808,30]
[383914695,1757171566736,-400.0,0.00037808,8]
[383914696,1757171566746,-400.0,0.00037808,8]
[383914697,1757171566756,-562.57,0.00037808,8]
[383914698,1757171566766,-400.0,0.00037808,8]
[383914699,1757171566776,-1353.54066605,0.00037808,2]
[383914700,1757171566786,-1425.0,0.00037844,2]
[383914701,1757171566796,-1425.0,0.00037862,2]
[383914702,1757171566805,-277.61682603,0.00037862,2]
[383914703,1757171566815,-150.0,0.00037867,2]
[383914704,1757171566825,-12990.02786583,0.0003787,2]
[383914705,1757171567457,-409.10472931,0.00035616,8]
[383914706,1757171567467,-19.32327069,0.0003589,8]
[383914707,1757171567478,-380.67672931,0.0003589,8]
[383914708,1757171567488,-169.0,0.00036076,30]
[383914709,1757171567499,-169.0,0.00036076,30]
[383914710,1757171567508,-169.0,0.00036076,30]
[383914711,1757171567517,-169.0,0.00036076,30]
[383914712,1757171567527,-169.0,0.00036076,30]
[383914713,1757171567537,-169.0,0.00036076,30]
[383914714,1757171567547,-169.0,0.00036076,30]
[383914715,1757171567556,-400.0,0.00036164,8]
[383914716,1757171567566,-400.0,0.00036438,8]
[383914717,1757171567576,-1000.0,0.00036573,7]
[383914718,1757171567585,-400.0,0.00036712,8]
[383914719,1757171567595,-400.0,0.00036712,8]
[383914720,1757171567605,-400.0,0.00036986,8]
[383914721,1757171567615,-400.0,0.00036986,8]
[383914722,1757171567624,-400.0,0.0003726,8]
[383914723,1757171567637,-164.12626751,0.0003726,8]
[383914724,1757171567646,-400.0,0.00037534,8]
[383914725,1757171567657,-400.0,0.00037808,8]
[383914726,1757171567667,-9047.65294514,0.0003787,2]
[383914727,1757171570950,300.0,0.00026103,120]
[383914728,1757171571124,300.0,0.00025563,120]
[383914729,1757171575881,-300.0,0.00031027,120]
[383914730,1757171575910,-145.0062,0.00031027,120]
[383914731,1757171585344,169.0,9.8e-07,2]
[383914746,1757172141316,500.0,0.00013699,2]
[383914747,1757172144148,162.27,0.00015705,2]
[383914748,1757172144561,162.27,0.00016532,2]
[383914749,1757172144769,162.27,0.00017359,2]
[383914750,1757172145381,162.27,0.00018185,2]
[383914752,1757172185460,-162.27,0.00019012,2]
[383914753,1757172185486,-38.45746913,0.00019425,2]
[383914754,1757172189859,-211.54253087,0.00019425,2]
[383914755,1757172216860,1001.564,0.00019425,30]
[383914756,1757172340210,-162.27,0.00019838,2]
[383914757,1757172340234,-1208.04893543,0.0002,2]
[383914759,1757172364049,2536.92,8e-05,2]
[383914760,1757172364075,9237.56574238,8e-05,2]
[383914761,1757172368453,4621.55703367,0.00011,2]
[383914764,1757172390610,1140.87722395,0.00015,2]
[383914765,1757172390631,871.58063712,0.00015,2]
[383914767,1757172430430,4236.78334292,0.00015,2]
[383914768,1757172435953,787.11,0.00026427,120]
[383914769,1757172436163,787.11,0.0002907,120]
[383914770,1757172437073,-550.04985531,0.000198,2]
[383914772,1757172443088,-101.10607797,0.000198,2]
[383914773,1757172443113,-207.44793095,0.000199,2]
[383914774,1757172443135,-207.44793093,0.00019905,2]
[383914775,1757172443157,-207.44793093,0.0001991,2]
[383914776,1757172443179,-1200.0,0.00019998,2]
[383914777,1757172443203,-551.89593408,0.00019999,2]
[383914778,1757172443228,-850.0,0.00019999,2]
[383914779,1757172443249,-500.0,0.00019999,2]
[383914780,1757172443271,-241.68475966,0.00019999,2]
[383914781,1757172443292,-500.0,0.00019999,2]
[383914782,1757172443316,-200.34928825,0.00019999,2]
[383914783,1757172443338,-500.0,0.00019999,2]
[383914784,1757172443360,-359.12094087,0.00019999,2]
[383914785,1757172443382,-157.42468624,0.00019999,2]
[383914786,1757172443403,-500.0,0.00019999,2]
[383914787,1757172443424,-337.51406277,0.00019999,2]
[383914788,1757172443447,-1312.60742699,0.0002,2]
[383914789,1757172453090,-426.74369203,0.00019999,2]
[383914790,1757172453116,-310.43334105,0.00019999,2]
[383914791,1757172455316,-279.63539599,0.00019701,2]
[383914792,1757172457607,9891.63601996,0.00018,2]
[383914793,1757172457630,15000.0,0.00018,2]
[383914794,1757172457652,14456.62818143,0.00018,2]
[383914795,1757172459282,-190.34437701,0.00019701,2]
[383914796,1757172463673,-174.53181411,0.00019701,2]
[383914797,1757172466099,-341.44027888,0.00019701,2]
[383914798,1757172468197,-187.40816137,0.00019701,2]
[383914799,1757172470200,-311.46818609,0.00019701,2]
[383914800,1757172472388,-195.0,0.00019701,2]
[383914801,1757172474679,-462.95330143,0.00019701,2]
[383914802,1757172474907,543.37181857,0.00018,2]
[383914803,1757172474931,883.73456855,0.00018,2]
[383914804,1757172478644,177.0,0.0003013,120]
[383914805,1757172483042,-343.93255572,0.00019701,2]
[383914806,1757172483188,150.0,0.0003013,120]
[383914807,1757172487264,-165.29973723,0.00019701,2]
[383914808,1757172490209,-253.14505619,0.00019701,2]
[383914809,1757172497563,-184.90428731,0.00019701,2]
[383914810,1757172497813,150.0,0.00020571,120]
[383914811,1757172499295,-259.50128528,0.00019701,2]
[383914812,1757172501498,-222.74166447,0.00019701,2]
[383914813,1757172505528,-164.0,0.00019701,2]
[383914814,1757172508180,-300.0,0.00019701,2]
[383914815,1757172510337,-195.82772741,0.00019701,2]
[383914816,1757172513019,-266.11947178,0.00019701,2]
[383914818,1757172540356,294.0,0.0003013,120]
[383914819,1757172541192,-401.61635926,0.00019676,2]
[383914820,1757172543785,725.0,0.0003013,120]
[383914821,1757172544135,-258.65989322,0.00019676,2]
[383914822,1757172547212,-442.83,0.00019676,2]
[383914823,1757172551697,-169.3441574,0.00019676,2]
[383914824,1757172555764,-167.14699212,0.00019676,2]
[383914825,1757172572127,-250.0,0.00019775,2]
[383914826,1757172572151,-150.0,0.0001985,2]
[383914827,1757172572173,-300.0,0.0001985,2]
[383914828,1757172572199,-195.0,0.0001985,2]
[383914829,1757172572222,-300.0,0.00019899,2]
[383914830,1757172572246,-1107.95550211,0.000199,2]
[383914831,1757172572270,-698.24192848,0.000199,2]
[383914833,1757172600506,420.96,0.0001999,3]
[383914844,1757172632367,-224.27,0.00019682,2]
[383914845,1757172632377,-320.73,0.00019779,2]
[383914846,1757172632393,-711.51882614,0.00019779,2]
[383914847,1757172632549,-332.92117386,0.00019779,2]
[383914848,1757172632559,-171.74488614,0.00019848,2]
[383914849,1757172632639,-2526.56658156,0.00019848,2]
[383914864,1757172633061,-881.56077435,0.00019848,2]
[383914899,1757172633562,-142.36775795,0.00019848,2]
[383914900,1757172633572,-300.0,0.00019899,2]
[383914901,1757172633582,-300.0,0.00019899,2]
[383914902,1757172633592,-1200.0,0.00019899,2]
[383914903,1757172633601,-300.0,0.00019899,2]
[383914904,1757172633611,-6785.95335565,0.000199,2]
[383914908,1757172638288,-15093.48176873,0.000199,2]
[383914909,1757172638297,-258.65989322,0.000199,2]
[383914910,1757172638307,-2583.40429715,0.000199,2]
[383914911,1757172638316,-850.0,0.00019972,2]
[383914912,1757172638325,-500.0,0.00019973,2]
[383914913,1757172638335,-475.24611325,0.00019973,2]
[383914914,1757172638345,-500.0,0.00019973,2]
[383914915,1757172638354,-500.0,0.00019973,2]
[383914916,1757172638363,-502.50017223,0.00019973,2]
[383914917,1757172638373,-503.94611895,0.00019973,2]
[383914918,1757172638382,-500.0,0.00019973,2]
[383914919,1757172638391,-500.0,0.00019973,2]
[383914920,1757172638400,-646.96202898,0.00019973,2]
[383914921,1757172638409,-173.59189117,0.00019973,2]
[383914922,1757172638419,-2764.0208,0.00019973,2]
[383914923,1757172638428,-1000.0,0.00019999,2]
[383914924,1757172638438,-92.5953693,0.00019999,2]
[383914925,1757172638447,-500.0,0.00019999,2]
[383914926,1757172638456,-500.0,0.00019999,2]
[383914927,1757172638465,-500.0,0.00019999,2]
[383914928,1757172638475,-209.11769102,0.00019999,2]
[383914929,1757172638484,-500.0,0.00019999,2]
[383914930,1757172638494,-500.0,0.00019999,2]
[383914931,1757172638504,-500.0,0.00019999,2]
[383914932,1757172638513,-363.91096173,0.00019999,2]
[383914933,1757172638523,-365.0601679,0.00019999,2]
[383914934,1757172638533,-343.78917434,0.00019999,2]
[383914935,1757172638542,-500.0,0.00019999,2]
[383914936,1757172638552,-500.0,0.00019999,2]
[383914937,1757172638561,-500.0,0.00019999,2]
[383914938,1757172638571,-500.0,0.00019999,2]
[383914939,1757172638581,-571.20974977,0.00019999,2]
[383914940,1757172638590,-500.0,0.00019999,2]
[383914941,1757172638600,-500.0,0.00019999,2]
[383914942,1757172638609,-500.0,0.00019999,2]
[383914943,1757172638619,-298.1415017,0.00019999,2]
[383914944,1757172638628,-500.0,0.00019999,2]
[383914945,1757172638637,-500.0,0.00019999,2]
[383914946,1757172638647,-154.05035377,0.00019999,2]
[383914947,1757172638657,-266.32702604,0.00019999,2]
[383914948,1757172638666,-151.94045583,0.00019999,2]
[383914949,1757172638676,-176.48507113,0.00019999,2]
[383914950,1757172638685,-315.98704362,0.00019999,2]
[383914951,1757172638695,-500.0,0.00019999,2]
[383914952,1757172638704,-183.92005927,0.00019999,2]
[383914953,1757172638713,-172.67793395,0.00019999,2]
[383914954,1757172638723,-636394.04089003,0.0002,2]
[383914955,1757172638732,-25148.12091108,0.0002,2]
[383914956,1757172638742,-232293.23082954,0.0002,2]
[383914957,1757172638752,-8777.71848051,0.0002001,2]
[383914958,1757172638762,-150.0,0.00020035,2]
[383914959,1757172638772,-195.0,0.00020035,2]
[383914960,1757172638782,-215.0,0.00020041,2]
[383914961,1757172638792,-610.0,0.00020082,2]
[383914962,1757172638802,-5496.16,0.00020191,2]
[383914963,1757172638811,-7442.86,0.00020367,2]
[383914964,1757172638821,-1637.1280745,0.00020465,2]
[383914965,1757172638830,-1000.0,0.00020521,2]
[383914966,1757172638840,-739.99164387,0.00020521,2]
[383914967,1757172638850,-1000.0,0.00020521,2]
[383914968,1757172638860,-2048.73488749,0.00020555,2]
[383914969,1757172638870,-150.0,0.00020571,2]
[383914970,1757172638880,-500.0,0.00020586,2]
[383914971,1757172638889,-500.0,0.00020586,2]
[383914972,1757172638899,-500.0,0.00020586,2]
[383914973,1757172638909,-500.0,0.00020586,2]
[383914974,1757172638918,-398.79790134,0.00020586,2]
[383914975,1757172638928,-162.27,0.00020665,2]
[383914976,1757172638937,-500.0,0.00020667,2]
[383914977,1757172638947,-500.0,0.00020667,2]
[383914978,1757172638956,-500.0,0.00020667,2]
[383914979,1757172638965,-491.30814062,0.00020667,2]
[383914980,1757172638975,-500.0,0.00020667,2]
[383914981,1757172638984,-501.54102562,0.00020667,2]
[383914982,1757172638994,-500.0,0.00020667,2]
[383914983,1757172639003,-500.0,0.00020667,2]
[383914984,1757172639012,-159.90844724,0.00020667,2]
[383914985,1757172639022,-504.44689017,0.00020667,2]
[383914986,1757172639032,-224.27,0.00020776,2]
[383914987,1757172639041,-3722.24,0.0002084,2]
[383914988,1757172639051,-500.0,0.000209,7]
[383914989,1757172639060,-1216.39750704,0.000209,2]
[383914990,1757172639070,-442.83,0.000209,2]
[383914991,1757172639079,-1445.0,0.0002097,2]
[383914992,1757172639089,-20000.0,0.00021,2]
[383914993,1757172639098,-129374.44415085,0.00021,2]
[383914994,1757172639107,-18990.928498,0.00021,2]
[383914995,1757172639117,-1171.3406934,0.00021,2]
[383914996,1757172639127,-193.34013112,0.00021,2]
[383914997,1757172639136,-1500.0,0.00021068,2]
[383914998,1757172639147,-417.0,0.000211,2]
[383914999,1757172639156,-1000.0,0.00021134,2]
[383915000,1757172639166,-1086.61515178,0.00021134,2]
[383915001,1757172639175,-1000.0,0.00021134,2]
[383915002,1757172639184,-787.11,0.00021142,2]
[383915003,1757172639194,-1000.0,0.00021215,2]
[383915004,1757172639203,-1000.0,0.00021215,2]
[383915005,1757172639213,-501.14263614,0.00021215,2]
[383915006,1757172639222,-503.79953922,0.00021215,2]
[383915007,1757172639233,-1003.82922599,0.00021215,2]
[383915008,1757172639243,-1000.0,0.00021215,2]
[383915009,1757172639252,-162.27,0.00021492,2]
[383915010,1757172639261,-217.98960596,0.000215,2]
[383915011,1757172639272,-300.0,0.00021561,2]
[383915012,1757172639281,-2000.0,0.00021616,2]
[383915013,1757172639290,-195.0,0.00021643,2]
[383915014,1757172639300,-250.0,0.00021643,2]
[383915015,1757172639310,-420.0,0.0002167,2]
[383915016,1757172639321,-420.0,0.0002167,2]
[383915017,1757172639331,-150.0,0.00021671,2]
[383915018,1757172639341,-300.0,0.00021671,2]
[383915019,1757172639350,-195.0,0.00021671,2]
[383915020,1757172639360,-250.0,0.00021671,2]
[383915021,1757172639370,-1500.0,0.00021682,2]
[383915022,1757172639382,-1500.0,0.00021682,2]
[383915023,1757172639392,-1607.09789361,0.00021717,2]
[383915024,1757172639401,-22577.6770528,0.00021726,2]
[383915025,1757172639411,-1500.0,0.00021763,2]
[383915026,1757172639420,-1500.0,0.00021763,2]
[383915027,1757172639430,-1500.0,0.00021763,2]
[383915028,1757172639439,-1680.0,0.00021774,2]
[383915029,1757172639449,-300.0,0.00021822,2]
[383915030,1757172639458,-195.0,0.00021822,2]
[383915031,1757172639468,-3722.24,0.00021833,2]
[383915032,1757172639478,-224.27,0.00021869,2]
[383915033,1757172639488,-250.0,0.00021889,2]
[383915034,1757172639497,-5000.0,0.00021918,2]
[383915035,1757172639507,-521.51450439,0.00021918,2]
[383915036,1757172639517,-151.62,0.0002199,2]
[383915037,1757172639527,-23441.61426689,0.00022,4]
[383915038,1757172639536,-4069.96998567,0.00022,2]